[Event "15. ročník Dobrovický rapid Tereos TTD a.s."]
[Site "Dobrovice, Czech Republic"]
[Date "2020.02.29"]
[Round "2.5"]
[White "Lochman Vaclav"]
[Black "Suran Jan"]
[Result "0-1"]
[TimeControl "15m + 3s / tah"]
[WhiteElo "1931"]
[BlackElo "2335"]

1. e4 {[%clk 00:15:04]} {[%emt 00:00:01]} c5 {[%clk 00:14:58]} {[%emt
00:00:08]} 2. Nf3 {[%clk 00:15:06]} {[%emt 00:00:02]} d6 {[%clk 00:14:57]}
{[%emt 00:00:04]} 3. d4 {[%clk 00:15:07]} {[%emt 00:00:02]} cxd4 {[%clk
00:14:59]} {[%emt 00:00:01]} 4. Nxd4 {[%clk 00:15:08]} {[%emt 00:00:01]} Nf6
{[%clk 00:15:01]} 5. Nc3 {[%clk 00:15:10]} {[%emt 00:00:02]} e6 {[%clk
00:14:55]} {[%emt 00:00:09]} 6. g3 {[%clk 00:14:56]} {[%emt 00:00:16]} Nc6
{[%clk 00:14:23]} {[%emt 00:00:35]} 7. Bg2 {[%clk 00:14:54]} {[%emt 00:00:06]}
Bd7 {[%clk 00:14:24]} {[%emt 00:00:02]} 8. O-O {[%clk 00:14:51]} {[%emt
00:00:06]} a6 {[%clk 00:14:26]} 9. h3 {[%clk 00:14:15]} {[%emt 00:00:41]} Be7
{[%clk 00:14:27]} {[%emt 00:00:02]} 10. Be3 {[%clk 00:14:16]} {[%emt 00:00:02]}
O-O {[%clk 00:14:26]} {[%emt 00:00:04]} 11. Qe2 {[%clk 00:14:04]} {[%emt
00:00:14]} Rc8 {[%clk 00:14:13]} {[%emt 00:00:16]} 12. f4 {[%clk 00:13:31]}
{[%emt 00:00:36]} Qc7 {[%clk 00:13:02]} {[%emt 00:01:14]} 13. Nb3 {[%clk
00:13:06]} {[%emt 00:00:28]} b5 {[%clk 00:12:15]} {[%emt 00:00:50]} 14. a3
{[%clk 00:12:43]} {[%emt 00:00:26]} Rfd8 {[%clk 00:11:21]} {[%emt 00:00:56]} 15.
Rad1 {[%clk 00:12:32]} {[%emt 00:00:13]} Be8 {[%clk 00:10:17]} {[%emt
00:01:08]} 16. g4 {[%clk 00:09:54]} {[%emt 00:02:40]} Na5 {[%clk 00:09:56]}
{[%emt 00:00:24]} 17. Nxa5 {[%clk 00:07:55]} {[%emt 00:02:02]} Qxa5 {[%clk
00:09:58]} 18. f5 {[%clk 00:06:58]} {[%emt 00:01:00]} Nd7 {[%clk 00:07:16]}
{[%emt 00:02:46]} 19. fxe6 {[%clk 00:06:37]} {[%emt 00:00:23]} fxe6 {[%clk
00:07:18]} {[%emt 00:00:01]} 20. Qd2 {[%clk 00:04:59]} {[%emt 00:01:40]} Qc7
{[%clk 00:07:04]} {[%emt 00:00:17]} 21. Rf2 {[%clk 00:03:23]} {[%emt 00:01:39]}
Ne5 {[%clk 00:06:49]} {[%emt 00:00:19]} 22. Qe2 {[%clk 00:02:26]} {[%emt
00:00:59]} Bc6 {[%clk 00:04:36]} {[%emt 00:02:16]} 23. Bd4 {[%clk 00:01:46]}
{[%emt 00:00:43]} Bb7 {[%clk 00:04:23]} {[%emt 00:00:17]} 24. Bxe5 {[%clk
00:01:35]} {[%emt 00:00:14]} dxe5 {[%clk 00:04:25]} 25. Kh2 {[%clk 00:01:31]}
{[%emt 00:00:07]} Bg5 {[%clk 00:03:45]} {[%emt 00:00:43]} 26. Rf3 {[%clk
00:01:22]} {[%emt 00:00:12]} Bf4+ {[%clk 00:03:38]} {[%emt 00:00:10]} 27. Kh1
{[%clk 00:01:23]} {[%emt 00:00:02]} Bc6 {[%clk 00:02:38]} {[%emt 00:01:03]} 28.
Rfd3 {[%clk 00:01:15]} {[%emt 00:00:11]} Bg5 {[%clk 00:02:25]} {[%emt
00:00:17]} 29. Rxd8+ {[%clk 00:01:04]} {[%emt 00:00:14]} Rxd8 {[%clk 00:02:27]}
{[%emt 00:00:01]} 30. Rxd8+ {[%clk 00:01:02]} {[%emt 00:00:04]} Qxd8 {[%clk
00:02:29]} 31. Qd3 {[%clk 00:00:59]} {[%emt 00:00:07]} Qf8 {[%clk 00:02:20]}
{[%emt 00:00:12]} 32. Nd1 {[%clk 00:00:52]} {[%emt 00:00:10]} Qc5 {[%clk
00:01:55]} {[%emt 00:00:28]} 33. b4 {[%clk 00:00:42]} {[%emt 00:00:13]} Qf8
{[%clk 00:01:46]} {[%emt 00:00:12]} 34. c4 {[%clk 00:00:40]} {[%emt 00:00:05]}
h6 {[%clk 00:01:40]} {[%emt 00:00:09]} 35. c5 {[%clk 00:00:41]} {[%emt
00:00:01]} Qe7 {[%clk 00:01:26]} {[%emt 00:00:17]} 36. Nc3 {[%clk 00:00:28]}
{[%emt 00:00:16]} Bc1 {[%clk 00:01:15]} {[%emt 00:00:13]} 37. Ne2 {[%clk
00:00:29]} {[%emt 00:00:02]} Bg5 {[%clk 00:01:11]} {[%emt 00:00:07]} 38. Ng3
{[%clk 00:00:21]} {[%emt 00:00:11]} Qd7 {[%clk 00:01:01]} {[%emt 00:00:13]} 39.
Qxd7 {[%clk 00:00:23]} {[%emt 00:00:02]} Bxd7 {[%clk 00:01:03]} 40. Ne2 {[%clk
00:00:23]} {[%emt 00:00:02]} Be3 {[%clk 00:00:58]} {[%emt 00:00:08]} 41. Kh2
{[%clk 00:00:24]} {[%emt 00:00:03]} a5 {[%clk 00:00:52]} {[%emt 00:00:09]} 42.
bxa5 {[%clk 00:00:23]} {[%emt 00:00:03]} Bxc5 {[%clk 00:00:54]} {[%emt
00:00:01]} 43. Bf1 {[%clk 00:00:13]} {[%emt 00:00:13]} Bxa3 {[%clk 00:00:42]}
{[%emt 00:00:15]} 44. a6 {[%clk 00:00:10]} {[%emt 00:00:05]} Bc5 {[%clk
00:00:42]} {[%emt 00:00:03]} 45. Nc1 {[%clk 00:00:10]} {[%emt 00:00:03]} Bc6
{[%clk 00:00:27]} {[%emt 00:00:18]} 46. Nb3 {[%clk 00:00:11]} {[%emt 00:00:02]}
Bb6 {[%clk 00:00:27]} {[%emt 00:00:03]} 47. Bd3 {[%clk 00:00:11]} {[%emt
00:00:03]} Kf7 {[%clk 00:00:27]} {[%emt 00:00:03]} 48. Kg2 {[%clk 00:00:14]}
Ke7 {[%clk 00:00:28]} {[%emt 00:00:02]} 49. Kf3 {[%clk 00:00:16]} Kd6 {[%clk
00:00:31]} 50. Ke2 {[%clk 00:00:18]} {[%emt 00:00:03]} Kc7 {[%clk 00:00:28]}
{[%emt 00:00:05]} 51. Kd2 {[%clk 00:00:19]} {[%emt 00:00:02]} Kb8 {[%clk
00:00:29]} {[%emt 00:00:03]} 52. Kc3 {[%clk 00:00:20]} {[%emt 00:00:01]} Ka7
{[%clk 00:00:24]} {[%emt 00:00:08]} 53. Kb4 {[%clk 00:00:23]} {[%emt 00:00:01]}
Kxa6 {[%clk 00:00:24]} {[%emt 00:00:03]} 54. Bc2 {[%clk 00:00:15]} {[%emt
00:00:11]} Kb7 {[%clk 00:00:21]} {[%emt 00:00:06]} 55. Bd3 {[%clk 00:00:08]}
{[%emt 00:00:09]} Kc7 {[%clk 00:00:20]} {[%emt 00:00:04]} 56. Bc2 {[%clk
00:00:09]} {[%emt 00:00:03]} Kd6 {[%clk 00:00:21]} {[%emt 00:00:03]} 57. Bd3
{[%clk 00:00:10]} {[%emt 00:00:02]} Bf2 {[%clk 00:00:20]} {[%emt 00:00:03]} 58.
Ka5 {[%clk 00:00:08]} {[%emt 00:00:06]} Be1+ {[%clk 00:00:17]} {[%emt
00:00:06]} 59. Kb6 {[%clk 00:00:09]} {[%emt 00:00:01]} b4 {[%clk 00:00:15]}
{[%emt 00:00:05]} 60. Ka5 {[%clk 00:00:08]} {[%emt 00:00:04]} g5 {[%clk
00:00:13]} {[%emt 00:00:06]} 61. Bc2 {[%clk 00:00:08]} {[%emt 00:00:02]} Be8
{[%clk 00:00:11]} {[%emt 00:00:05]} 62. Bd3 {[%clk 00:00:09]} {[%emt 00:00:02]}
h5 {[%clk 00:00:13]} {[%emt 00:00:01]} 63. Be2 {[%clk 00:00:10]} {[%emt
00:00:01]} h4 {[%clk 00:00:14]} {[%emt 00:00:02]} 64. Bf3 {[%clk 00:00:05]}
{[%emt 00:00:08]} Bc6 {[%clk 00:00:14]} {[%emt 00:00:02]} 65. Bg2 {[%clk
00:00:06]} {[%emt 00:00:03]} Bb7 {[%clk 00:00:13]} {[%emt 00:00:04]} 66. Bf3
{[%clk 00:00:07]} {[%emt 00:00:02]} Bc3 {[%clk 00:00:14]} {[%emt 00:00:02]} 67.
Bg2 {[%clk 00:00:09]} {[%emt 00:00:02]} Bc6 {[%clk 00:00:11]} {[%emt 00:00:06]}
68. Bf3 {[%clk 00:00:11]} Kc7 {[%clk 00:00:12]} {[%emt 00:00:01]} 69. Bg2
{[%clk 00:00:13]} {[%emt 00:00:02]} Be1 {[%emt 00:00:01]} 70. Bf3 Bf2 {[%clk
00:00:12]} {[%emt 00:00:04]} 71. Kxb4 {[%clk 00:00:16]} {[%emt 00:00:02]} Kb6
{[%clk 00:00:15]} 72. Nc1 {[%clk 00:00:11]} {[%emt 00:00:09]} Be1+ {[%clk
00:00:15]} {[%emt 00:00:03]} 73. Kc4 {[%clk 00:00:11]} {[%emt 00:00:03]} Bb5+
{[%clk 00:00:16]} {[%emt 00:00:02]} 74. Kb3 {[%clk 00:00:12]} {[%emt 00:00:02]}
Kc5 {[%clk 00:00:17]} {[%emt 00:00:02]} 75. Bg2 {[%clk 00:00:13]} {[%emt
00:00:02]} Kd4 {[%clk 00:00:17]} {[%emt 00:00:03]} 0-1

[Event "15. ročník Dobrovický rapid Tereos TTD a.s."]
[Site "Dobrovice, Czech Republic"]
[Date "2020.02.29"]
[Round "2.6"]
[White "Zemlicka Vit"]
[Black "Sorm Daniel"]
[Result "1/2-1/2"]
[TimeControl "15m + 3s / tah"]
[WhiteElo "1915"]
[BlackElo "2310"]

1. e4 {[%clk 00:15:04]} {[%emt 00:00:01]} c5 {[%clk 00:15:05]} {[%emt
00:00:02]} 2. Nf3 {[%clk 00:15:06]} {[%emt 00:00:01]} Nc6 {[%clk 00:15:06]}
{[%emt 00:00:01]} 3. d4 {[%clk 00:15:08]} {[%emt 00:00:01]} cxd4 {[%clk
00:15:07]} {[%emt 00:00:02]} 4. Nxd4 {[%clk 00:15:10]} {[%emt 00:00:01]} e5
{[%clk 00:14:56]} {[%emt 00:00:14]} 5. Nb5 {[%clk 00:15:11]} {[%emt 00:00:02]}
d6 {[%clk 00:14:57]} {[%emt 00:00:02]} 6. N1c3 {[%clk 00:15:06]} {[%emt
00:00:08]} a6 {[%clk 00:14:59]} {[%emt 00:00:01]} 7. Na3 {[%clk 00:15:08]} b5
{[%clk 00:15:01]} {[%emt 00:00:02]} 8. Nd5 {[%clk 00:15:10]} {[%emt 00:00:01]}
Nce7 {[%clk 00:15:03]} 9. c4 {[%clk 00:15:03]} {[%emt 00:00:11]} Nxd5 {[%clk
00:15:01]} {[%emt 00:00:05]} 10. cxd5 {[%clk 00:15:01]} {[%emt 00:00:05]} Nf6
{[%clk 00:14:18]} {[%emt 00:00:46]} 11. Bd3 {[%clk 00:14:43]} {[%emt 00:00:21]}
Be7 {[%clk 00:14:06]} {[%emt 00:00:15]} 12. O-O {[%clk 00:14:41]} {[%emt
00:00:04]} O-O {[%clk 00:14:07]} {[%emt 00:00:02]} 13. Nc2 {[%clk 00:14:39]}
{[%emt 00:00:05]} Bd7 {[%clk 00:13:15]} {[%emt 00:00:55]} 14. Qe2 {[%clk
00:13:19]} {[%emt 00:01:23]} Qb6 {[%clk 00:12:15]} {[%emt 00:01:03]} 15. Be3
{[%clk 00:13:05]} {[%emt 00:00:16]} Qb7 {[%clk 00:12:16]} {[%emt 00:00:03]} 16.
b4 {[%clk 00:11:52]} {[%emt 00:01:16]} Rfc8 {[%clk 00:11:36]} {[%emt 00:00:43]}
17. Rfc1 {[%clk 00:11:13]} {[%emt 00:00:41]} Bd8 {[%clk 00:11:25]} {[%emt
00:00:16]} 18. Rab1 {[%clk 00:07:09]} {[%emt 00:04:08]} Be8 {[%clk 00:11:01]}
{[%emt 00:00:27]} 19. Na1 {[%clk 00:06:37]} {[%emt 00:00:34]} Rxc1+ {[%clk
00:08:36]} {[%emt 00:02:28]} 20. Rxc1 {[%clk 00:06:37]} {[%emt 00:00:04]} a5
{[%clk 00:08:38]} {[%emt 00:00:01]} 21. a3 {[%clk 00:04:47]} {[%emt 00:01:53]}
a4 {[%clk 00:08:13]} {[%emt 00:00:27]} 22. Rc3 {[%clk 00:04:34]} {[%emt
00:00:15]} Rc8 {[%clk 00:06:50]} {[%emt 00:01:26]} 23. Qc2 {[%clk 00:04:06]}
{[%emt 00:00:31]} Rxc3 {[%clk 00:06:06]} {[%emt 00:00:47]} 24. Qxc3 {[%clk
00:04:08]} {[%emt 00:00:01]} Bb6 {[%clk 00:06:08]} {[%emt 00:00:01]} 25. Nc2
{[%clk 00:04:04]} {[%emt 00:00:07]} Ng4 {[%clk 00:05:43]} {[%emt 00:00:28]} 26.
Bxb6 {[%clk 00:03:49]} {[%emt 00:00:18]} Qxb6 {[%clk 00:05:45]} {[%emt
00:00:01]} 27. Qd2 {[%clk 00:03:49]} {[%emt 00:00:02]} Qc7 {[%clk 00:04:41]}
{[%emt 00:01:08]} 28. h3 {[%clk 00:03:47]} {[%emt 00:00:05]} Nf6 {[%clk
00:04:43]} {[%emt 00:00:01]} 29. Ne3 {[%clk 00:03:42]} {[%emt 00:00:08]} g6
{[%clk 00:04:09]} {[%emt 00:00:38]} 30. Qc2 {[%clk 00:03:40]} {[%emt 00:00:04]}
Qb6 {[%clk 00:04:05]} {[%emt 00:00:08]} 31. Qc3 {[%clk 00:03:03]} {[%emt
00:00:39]} Bd7 {[%clk 00:03:49]} {[%emt 00:00:20]} 32. Qc2 {[%clk 00:02:36]}
{[%emt 00:00:30]} Nh5 {[%clk 00:03:33]} {[%emt 00:00:19]} 33. Nd1 {[%clk
00:02:07]} {[%emt 00:00:31]} Nf4 {[%clk 00:03:16]} {[%emt 00:00:22]} 34. Bf1
{[%clk 00:01:49]} {[%emt 00:00:21]} h5 {[%clk 00:02:19]} {[%emt 00:01:01]} 35.
Qc3 {[%clk 00:01:22]} {[%emt 00:00:29]} h4 {[%clk 00:02:11]} {[%emt 00:00:12]}
36. Nb2 {[%clk 00:01:07]} {[%emt 00:00:18]} f5 {[%clk 00:01:53]} {[%emt
00:00:21]} 37. Nd3 {[%clk 00:00:30]} {[%emt 00:00:40]} Nh5 {[%clk 00:01:12]}
{[%emt 00:00:45]} 38. exf5 {[%clk 00:00:09]} {[%emt 00:00:24]} gxf5 {[%clk
00:01:09]} {[%emt 00:00:06]} 39. Nxe5 {[%clk 00:00:09]} {[%emt 00:00:02]} dxe5
{[%clk 00:00:31]} {[%emt 00:00:41]} 40. Qxe5 {[%clk 00:00:11]} {[%emt
00:00:01]} Qf6 {[%clk 00:00:28]} {[%emt 00:00:05]} 41. Qb8+ {[%clk 00:00:11]}
{[%emt 00:00:03]} Qf8 {[%clk 00:00:25]} {[%emt 00:00:07]} 42. Qb6 {[%clk
00:00:08]} {[%emt 00:00:05]} Qe8 {[%clk 00:00:22]} {[%emt 00:00:07]} 43. Qh6
{[%clk 00:00:05]} {[%emt 00:00:06]} Qf7 {[%clk 00:00:11]} {[%emt 00:00:14]} 44.
Qg5+ {[%clk 00:00:05]} {[%emt 00:00:04]} Ng7 {[%clk 00:00:13]} 45. Qxh4 {[%clk
00:00:06]} {[%emt 00:00:02]} Qxd5 {[%clk 00:00:12]} {[%emt 00:00:04]} 46. Qd8+
{[%clk 00:00:06]} {[%emt 00:00:02]} Kf7 {[%clk 00:00:12]} {[%emt 00:00:03]} 47.
Qg5 {[%clk 00:00:06]} {[%emt 00:00:03]} Ne6 {[%clk 00:00:12]} {[%emt 00:00:03]}
48. Qh5+ {[%clk 00:00:08]} {[%emt 00:00:01]} Ke7 {[%clk 00:00:14]} 49. Qh7+
{[%clk 00:00:08]} {[%emt 00:00:02]} Kd6 {[%clk 00:00:16]} {[%emt 00:00:01]} 50.
h4 {[%clk 00:00:10]} {[%emt 00:00:01]} Bc6 {[%clk 00:00:14]} {[%emt 00:00:05]}
51. h5 {[%clk 00:00:10]} {[%emt 00:00:03]} Nf4 {[%clk 00:00:14]} {[%emt
00:00:03]} 52. Qg7 {[%clk 00:00:12]} {[%emt 00:00:01]} Nxh5 {[%clk 00:00:12]}
{[%emt 00:00:05]} 53. Qg6+ {[%clk 00:00:13]} {[%emt 00:00:01]} Ke5 {[%clk
00:00:12]} {[%emt 00:00:03]} 54. Qxh5 {[%clk 00:00:15]} {[%emt 00:00:02]} Qd4
{[%clk 00:00:12]} {[%emt 00:00:03]} 55. Qe2+ {[%clk 00:00:16]} {[%emt
00:00:02]} Kf6 {[%clk 00:00:10]} {[%emt 00:00:05]} 56. Qh5 {[%clk 00:00:17]}
{[%emt 00:00:02]} Ke5 {[%clk 00:00:11]} {[%emt 00:00:01]} 57. Qh8+ {[%clk
00:00:19]} {[%emt 00:00:01]} Kd5 {[%clk 00:00:13]} {[%emt 00:00:01]} 58. Qxd4+
{[%clk 00:00:20]} {[%emt 00:00:02]} Kxd4 {[%clk 00:00:15]} 59. Be2 {[%clk
00:00:21]} {[%emt 00:00:02]} Kc3 {[%clk 00:00:17]} {[%emt 00:00:01]} 60. g4
{[%clk 00:00:24]} fxg4 {[%clk 00:00:18]} {[%emt 00:00:02]} 61. Bxg4 {[%clk
00:00:26]} {[%emt 00:00:01]} Kb2 {[%clk 00:00:19]} {[%emt 00:00:01]} 62. f4
{[%clk 00:00:28]} Kxa3 {[%clk 00:00:20]} {[%emt 00:00:02]} 63. f5 {[%clk
00:00:30]} {[%emt 00:00:01]} Bd7 {[%clk 00:00:19]} {[%emt 00:00:04]} 64. Kf2
{[%clk 00:00:29]} {[%emt 00:00:04]} Kxb4 {[%clk 00:00:18]} {[%emt 00:00:04]} 65.
f6 {[%clk 00:00:26]} {[%emt 00:00:06]} Be8 {[%clk 00:00:20]} 66. Be6 {[%clk
00:00:27]} {[%emt 00:00:03]} Kc3 {[%clk 00:00:19]} {[%emt 00:00:04]} 67. Ke3
{[%clk 00:00:25]} {[%emt 00:00:05]} b4 {[%clk 00:00:21]} 68. Bd7 {[%clk
00:00:16]} {[%emt 00:00:12]} Bf7 {[%clk 00:00:07]} {[%emt 00:00:17]} 69. Bxa4
{[%clk 00:00:17]} {[%emt 00:00:02]} 1/2-1/2

[Event "15. ročník Dobrovický rapid Tereos TTD a.s."]
[Site "Dobrovice, Czech Republic"]
[Date "2020.02.29"]
[Round "2.7"]
[White "Postupa Pavel"]
[Black "Janous Petr"]
[Result "0-1"]
[TimeControl "15m + 3s / tah"]
[WhiteElo "2164"]
[BlackElo "1931"]

1. e4 {[%clk 00:15:04]} {[%emt 00:00:01]} e5 {[%clk 00:15:05]} {[%emt
00:00:01]} 2. Nf3 {[%clk 00:15:05]} {[%emt 00:00:01]} Nf6 {[%clk 00:15:08]} 3.
Nxe5 {[%clk 00:15:07]} {[%emt 00:00:01]} d6 {[%clk 00:15:10]} 4. Nf3 {[%clk
00:15:09]} Nxe4 {[%clk 00:15:12]} {[%emt 00:00:01]} 5. Nc3 {[%clk 00:15:10]}
{[%emt 00:00:02]} Nxc3 {[%clk 00:15:14]} {[%emt 00:00:01]} 6. dxc3 {[%clk
00:15:12]} {[%emt 00:00:01]} Be7 {[%clk 00:15:16]} {[%emt 00:00:01]} 7. Be3
{[%clk 00:15:13]} {[%emt 00:00:03]} Nc6 {[%clk 00:15:17]} {[%emt 00:00:02]} 8.
Qd2 {[%clk 00:15:14]} {[%emt 00:00:02]} Be6 {[%clk 00:15:19]} 9. Ng5 {[%clk
00:15:08]} {[%emt 00:00:09]} Bf5 {[%clk 00:14:41]} {[%emt 00:00:40]} 10. Be2
{[%clk 00:14:58]} {[%emt 00:00:13]} Qd7 {[%clk 00:14:25]} {[%emt 00:00:19]} 11.
O-O-O {[%clk 00:14:52]} {[%emt 00:00:10]} h6 {[%clk 00:14:19]} {[%emt
00:00:09]} 12. Nf3 {[%clk 00:14:50]} {[%emt 00:00:05]} O-O-O {[%clk 00:14:18]}
{[%emt 00:00:03]} 13. Rhe1 {[%clk 00:14:46]} {[%emt 00:00:07]} a6 {[%clk
00:14:12]} {[%emt 00:00:09]} 14. Nd4 {[%clk 00:14:41]} {[%emt 00:00:07]} Bf6
{[%clk 00:13:23]} {[%emt 00:00:52]} 15. Nxf5 {[%clk 00:14:11]} {[%emt
00:00:33]} Qxf5 {[%clk 00:13:25]} {[%emt 00:00:01]} 16. g4 {[%clk 00:13:59]}
{[%emt 00:00:15]} Qa5 {[%clk 00:12:44]} {[%emt 00:00:44]} 17. Kb1 {[%clk
00:13:56]} {[%emt 00:00:06]} Rhe8 {[%clk 00:12:22]} {[%emt 00:00:25]} 18. f4
{[%clk 00:13:20]} {[%emt 00:00:39]} Nb8 {[%clk 00:11:07]} {[%emt 00:01:18]} 19.
Bf3 {[%clk 00:13:11]} {[%emt 00:00:12]} Nd7 {[%clk 00:10:45]} {[%emt 00:00:24]}
20. Bd5 {[%clk 00:12:49]} {[%emt 00:00:26]} Re7 {[%clk 00:10:34]} {[%emt
00:00:14]} 21. Bg1 {[%clk 00:12:35]} {[%emt 00:00:17]} Rde8 {[%clk 00:10:13]}
{[%emt 00:00:24]} 22. Bxf7 {[%clk 00:12:04]} {[%emt 00:00:34]} Rxe1 {[%clk
00:09:13]} {[%emt 00:01:04]} 23. Rxe1 {[%clk 00:12:05]} {[%emt 00:00:01]} Rf8
{[%clk 00:09:16]} 24. Be6 {[%clk 00:11:58]} {[%emt 00:00:10]} Kd8 {[%clk
00:09:13]} {[%emt 00:00:06]} 25. Bxd7 {[%clk 00:11:46]} {[%emt 00:00:15]} Kxd7
{[%clk 00:09:15]} {[%emt 00:00:01]} 26. Qe3 {[%clk 00:11:45]} {[%emt 00:00:03]}
Qd5 {[%clk 00:08:27]} {[%emt 00:00:52]} 27. Bf2 {[%clk 00:10:22]} {[%emt
00:01:26]} g5 {[%clk 00:07:01]} {[%emt 00:01:28]} 28. f5 {[%clk 00:09:06]}
{[%emt 00:01:21]} Be5 {[%clk 00:06:58]} {[%emt 00:00:06]} 29. h4 {[%clk
00:08:36]} {[%emt 00:00:33]} Rg8 {[%clk 00:05:50]} {[%emt 00:01:10]} 30. hxg5
{[%clk 00:08:06]} {[%emt 00:00:34]} hxg5 {[%clk 00:05:51]} {[%emt 00:00:02]} 31.
Bg3 {[%clk 00:06:38]} {[%emt 00:01:31]} Bxg3 {[%clk 00:05:34]} {[%emt
00:00:20]} 32. Qxg3 {[%clk 00:06:37]} {[%emt 00:00:04]} Re8 {[%clk 00:05:32]}
{[%emt 00:00:04]} 33. Qg1 {[%clk 00:06:18]} {[%emt 00:00:21]} Re5 {[%clk
00:05:16]} {[%emt 00:00:20]} 34. Rf1 {[%clk 00:05:21]} {[%emt 00:01:00]} Qd2
{[%clk 00:04:59]} {[%emt 00:00:21]} 35. Rd1 {[%clk 00:04:02]} {[%emt 00:01:23]}
Qf4 {[%clk 00:04:22]} {[%emt 00:00:40]} 36. b3 {[%clk 00:04:04]} {[%emt
00:00:01]} Re4 {[%clk 00:04:14]} {[%emt 00:00:11]} 37. Qh1 {[%clk 00:03:48]}
{[%emt 00:00:18]} Qxg4 {[%clk 00:04:09]} {[%emt 00:00:08]} 38. Qh7+ {[%clk
00:03:50]} {[%emt 00:00:02]} Kc6 {[%clk 00:04:10]} {[%emt 00:00:01]} 39. Rf1
{[%clk 00:03:25]} {[%emt 00:00:27]} Qg2 {[%clk 00:03:46]} {[%emt 00:00:27]} 40.
Rd1 {[%clk 00:03:05]} {[%emt 00:00:22]} Qf3 {[%clk 00:03:33]} {[%emt 00:00:17]}
41. Rd3 {[%clk 00:03:06]} {[%emt 00:00:02]} Re1+ {[%clk 00:03:06]} {[%emt
00:00:30]} 42. Kb2 {[%clk 00:03:07]} {[%emt 00:00:03]} Qf4 {[%clk 00:03:06]}
{[%emt 00:00:03]} 43. Ka3 {[%clk 00:02:58]} {[%emt 00:00:12]} Qc1+ {[%clk
00:02:54]} {[%emt 00:00:15]} 44. Ka4 {[%clk 00:02:53]} {[%emt 00:00:08]} Qxc2
{[%clk 00:02:34]} {[%emt 00:00:23]} 45. f6 {[%clk 00:02:56]} Qxa2+ {[%clk
00:01:58]} {[%emt 00:00:39]} 46. Kb4 {[%clk 00:02:54]} {[%emt 00:00:05]} a5+
{[%clk 00:01:51]} {[%emt 00:00:10]} 47. Kc4 {[%clk 00:02:55]} {[%emt 00:00:02]}
b5+ {[%clk 00:01:52]} {[%emt 00:00:02]} 48. Kd4 {[%clk 00:02:52]} {[%emt
00:00:06]} Qf2+ {[%clk 00:01:54]} 0-1

[Event "15. ročník Dobrovický rapid Tereos TTD a.s."]
[Site "Dobrovice, Czech Republic"]
[Date "2020.02.29"]
[Round "2.8"]
[White "Ret Adam Josef"]
[Black "Hosticka Frantisek"]
[Result "0-1"]
[TimeControl "15m + 3s / tah"]
[WhiteElo "1909"]
[BlackElo "2106"]

1. d4 {[%clk 00:15:01]} {[%emt 00:00:02]} Nf6 {[%clk 00:15:00]} {[%emt
00:00:06]} 2. g3 {[%clk 00:14:59]} {[%emt 00:00:05]} c5 {[%clk 00:14:45]}
{[%emt 00:00:17]} 3. Nf3 {[%clk 00:14:51]} {[%emt 00:00:12]} cxd4 {[%clk
00:14:30]} {[%emt 00:00:18]} 4. Nxd4 {[%clk 00:14:51]} {[%emt 00:00:03]} Nc6
{[%clk 00:14:08]} {[%emt 00:00:26]} 5. Bg2 {[%clk 00:14:29]} {[%emt 00:00:25]}
g6 {[%clk 00:13:58]} {[%emt 00:00:13]} 6. c4 {[%clk 00:13:56]} {[%emt
00:00:36]} Bg7 {[%clk 00:13:54]} {[%emt 00:00:07]} 7. Nc3 {[%clk 00:13:52]}
{[%emt 00:00:06]} O-O {[%clk 00:13:50]} {[%emt 00:00:08]} 8. Nxc6 {[%clk
00:13:52]} {[%emt 00:00:03]} dxc6 {[%clk 00:13:23]} {[%emt 00:00:31]} 9. O-O
{[%clk 00:13:42]} {[%emt 00:00:13]} Be6 {[%clk 00:12:16]} {[%emt 00:01:10]} 10.
Qxd8 {[%clk 00:13:07]} {[%emt 00:00:37]} Rfxd8 {[%clk 00:12:12]} {[%emt
00:00:07]} 11. b3 {[%clk 00:11:28]} {[%emt 00:01:42]} Ng4 {[%clk 00:11:26]}
{[%emt 00:00:50]} 12. Bb2 {[%clk 00:10:22]} {[%emt 00:01:08]} Rd2 {[%clk
00:11:12]} {[%emt 00:00:15]} 13. Rab1 {[%clk 00:10:15]} {[%emt 00:00:12]} Rxb2
{[%clk 00:11:00]} {[%emt 00:00:16]} 14. Rxb2 {[%clk 00:10:17]} Bxc3 {[%clk
00:11:01]} {[%emt 00:00:02]} 15. Rc2 {[%clk 00:10:18]} {[%emt 00:00:01]} Bb4
{[%clk 00:09:56]} {[%emt 00:01:07]} 16. Rd1 {[%clk 00:09:46]} {[%emt 00:00:37]}
Bf5 {[%clk 00:09:38]} {[%emt 00:00:19]} 17. e4 {[%clk 00:09:38]} {[%emt
00:00:13]} Be6 {[%clk 00:09:30]} {[%emt 00:00:10]} 18. h3 {[%clk 00:08:22]}
{[%emt 00:01:20]} Nf6 {[%clk 00:09:17]} {[%emt 00:00:16]} 19. Rd4 {[%clk
00:07:35]} {[%emt 00:00:49]} Kf8 {[%clk 00:08:28]} {[%emt 00:00:52]} 20. Rc1
{[%clk 00:07:15]} {[%emt 00:00:23]} Ke8 {[%clk 00:07:53]} {[%emt 00:00:37]} 21.
Rcd1 {[%clk 00:07:16]} {[%emt 00:00:03]} Nd7 {[%clk 00:07:15]} {[%emt
00:00:39]} 22. Kh2 {[%clk 00:06:58]} {[%emt 00:00:23]} Nc5 {[%clk 00:06:46]}
{[%emt 00:00:31]} 23. f4 {[%clk 00:06:34]} {[%emt 00:00:27]} Bc3 {[%clk
00:06:24]} {[%emt 00:00:25]} 24. f5 {[%clk 00:05:25]} {[%emt 00:01:12]} Bxd4
{[%clk 00:06:25]} {[%emt 00:00:02]} 25. Rxd4 {[%clk 00:05:25]} {[%emt
00:00:03]} gxf5 {[%clk 00:06:03]} {[%emt 00:00:24]} 26. exf5 {[%clk 00:05:23]}
{[%emt 00:00:06]} Bxf5 {[%clk 00:06:01]} {[%emt 00:00:05]} 27. Rf4 {[%clk
00:05:21]} {[%emt 00:00:05]} Bg6 {[%clk 00:05:51]} {[%emt 00:00:13]} 28. h4
{[%clk 00:05:12]} {[%emt 00:00:12]} Rd8 {[%clk 00:05:43]} {[%emt 00:00:09]} 29.
h5 {[%clk 00:05:09]} {[%emt 00:00:09]} Bb1 {[%clk 00:05:32]} {[%emt 00:00:12]}
30. Rg4 {[%clk 00:04:50]} {[%emt 00:00:24]} Kf8 {[%clk 00:05:26]} {[%emt
00:00:08]} 31. b4 {[%clk 00:04:37]} {[%emt 00:00:17]} Ne6 {[%clk 00:05:02]}
{[%emt 00:00:26]} 32. b5 {[%clk 00:04:38]} {[%emt 00:00:03]} Rd2 {[%clk
00:04:27]} {[%emt 00:00:38]} 33. bxc6 {[%clk 00:04:30]} {[%emt 00:00:11]} bxc6
{[%clk 00:04:28]} {[%emt 00:00:02]} 34. Kg1 {[%clk 00:04:13]} {[%emt 00:00:20]}
Bf5 {[%clk 00:04:16]} {[%emt 00:00:14]} 35. Rh4 {[%clk 00:04:10]} {[%emt
00:00:07]} c5 {[%clk 00:03:47]} {[%emt 00:00:34]} 36. a4 {[%clk 00:03:40]}
{[%emt 00:00:37]} Nd4 {[%clk 00:03:42]} {[%emt 00:00:08]} 37. g4 {[%clk
00:03:23]} {[%emt 00:00:20]} Be6 {[%clk 00:03:27]} {[%emt 00:00:18]} 38. g5
{[%clk 00:03:06]} {[%emt 00:00:20]} Bxc4 {[%clk 00:15:03]} {[%emt 00:00:48]}
0-1